bitfinex/quotes_SOLUSD_20220118
["timestamp","ask_amount","ask_price","bid_price","bid_amount"]
[1642529906961,2.927,136.67,136.59,17.2296]
[1642529907161,2.927,136.69,136.59,26.1556]
[1642529907359,2.927,136.69,136.6,10.47]
[1642529907661,2.927,136.69,136.61,6.25]
[1642529907859,38.65850099,136.68,136.61,43.86869579]
[1642529908260,4.1188201,136.72,136.61,43.86869579]
[1642529908261,82.9325201,136.73,136.62,10.9772]
[1642529908465,7.0458201,136.73,136.62,27.0302]
[1642529908659,7.0458201,136.73,136.63,8.03905272]
[1642529908960,4.1188201,136.73,136.64,10.47]
[1642529909159,49.23740816,136.72,136.65,48.43785987]
[1642529909363,52.16340816,136.72,136.66,10.9719]
[1642529909562,52.16340816,136.72,136.67,6.0]
[1642529909760,52.16340816,136.72,136.67,0.25]
[1642529910360,52.16340816,136.72,136.66,10.9719]
[1642529910560,52.16340816,136.72,136.67,0.25]
[1642529910962,52.16340816,136.72,136.66,10.9719]
[1642529911260,52.16340816,136.72,136.67,11.2234]
[1642529911462,49.23740816,136.72,136.67,11.2234]
[1642529912261,2.926,136.73,136.67,11.2234]
[1642529912462,28.5146201,136.75,136.67,11.2234]
[1642529912664,3.29342393,136.74,136.67,11.2234]
[1642529912865,0.36742393,136.74,136.67,21.6934]
[1642529913063,0.36742393,136.74,136.68,6.0]
[1642529913261,0.36742393,136.74,136.69,71.33743692]
[1642529913462,0.36742393,136.74,136.69,21.6885]
[1642529913661,0.36742393,136.74,136.7,6.0]
[1642529913961,0.36742393,136.74,136.7,16.47]
[1642529914163,0.36742393,136.74,136.71,0.25]
[1642529914362,0.36742393,136.74,136.72,0.5]
[1642529915368,3.03219997,136.73,136.7,10.47]
[1642529915565,5.95619997,136.73,136.68,10.973]
[1642529915862,5.95619997,136.73,136.64,47.0476]
[1642529916265,44.18548172,136.72,136.64,47.0476]
[1642529916662,44.18548172,136.72,136.67,10.9738]
[1642529917064,44.18548172,136.72,136.68,0.25]
[1642529917669,3.29342393,136.74,136.68,0.25]
[1642529917867,3.29342393,136.74,136.68,11.2223]
[1642529918769,41.51915367,136.73,136.68,0.25]
[1642529918967,41.51915367,136.73,136.64,10.47]
[1642529919174,2.926,136.72,136.64,10.47]
[1642529919567,2.926,136.72,136.62,23.8197]
[1642529919768,0.25,136.71,136.63,44.61707715]
[1642529919971,43.90503583,136.69,136.63,38.61707715]
[1642529920774,43.90503583,136.69,136.64,0.25]
[1642529921070,43.90503583,136.69,136.62,6.25]
[1642529921269,43.90503583,136.69,136.63,10.9768]
[1642529921672,43.90503583,136.69,136.64,0.25]
[1642529922275,43.90503583,136.69,136.62,16.9777]
[1642529922474,3.177,136.68,136.61,10.47]
[1642529922873,3.177,136.68,136.57,2.0205629]
[1642529923074,3.177,136.68,136.58,16.47]
[1642529923276,26.2617,136.68,136.58,56.0554187]
[1642529923477,26.0117,136.68,136.59,0.25]
[1642529923675,26.0117,136.68,136.59,11.2301]
[1642529924075,26.0117,136.68,136.61,45.56094404]
[1642529924277,4.48624403,136.74,136.63,64.0]
[1642529924476,4.48624403,136.74,136.64,2.926]
[1642529924776,4.48624403,136.74,136.65,10.47]
[1642529924978,4.48624403,136.74,136.68,10.9713]
[1642529924979,0.36742393,136.74,136.68,10.9713]
[1642529925178,0.36742393,136.74,136.69,42.14081655]
[1642529925386,0.36742393,136.74,136.69,48.14081655]
[1642529925576,0.36742393,136.74,136.69,48.40081655]
[1642529926376,0.36742393,136.74,136.7,10.972]
[1642529926778,0.36742393,136.74,136.71,0.25]
[1642529927382,6.06439993,136.73,136.71,0.25]
[1642529927781,0.36742393,136.74,136.7,0.25]
[1642529928380,0.36742393,136.74,136.71,10.9716]
[1642529928580,6.06439993,136.73,136.7,0.25]
[1642529928779,6.06439993,136.73,136.69,2.924]
[1642529928980,8.98839993,136.73,136.7,0.25]
[1642529929210,8.98839993,136.73,136.69,2.924]
[1642529929814,19.96359993,136.73,136.69,2.924]
[1642529930012,19.96359993,136.73,136.66,10.9762]
[1642529930212,0.25,136.72,136.63,10.47]
[1642529930414,2.926,136.71,136.63,10.47]
[1642529931114,56.21320004,136.7,136.64,34.80948171]
[1642529931316,2.926,136.69,136.64,34.80948171]
[1642529931716,2.926,136.69,136.61,13.396]
[1642529931914,2.926,136.69,136.62,6.0]
[1642529932816,2.926,136.69,136.62,47.66142387]
[1642529933415,2.926,136.69,136.64,10.9776]
[1642529935515,6.0,136.68,136.64,10.9776]
[1642529935717,0.25,136.67,136.61,10.47]
[1642529935918,2.927,136.66,136.57,2.0205629]
[1642529936316,0.25,136.65,136.57,2.0205629]
[1642529936517,43.46453019,136.63,136.57,2.0205629]
[1642529936716,3.178,136.62,136.57,2.0205629]
[1642529936915,2.928,136.62,136.57,2.0205629]
[1642529937316,2.928,136.62,136.57,40.76094545]
[1642529937716,29.3694,136.65,136.57,40.76094545]
[1642529937920,23.3694,136.65,136.58,2.928]
[1642529938520,45.46680866,136.64,136.58,2.928]
[1642529938717,48.39480866,136.64,136.59,0.25]
[1642529938917,45.46680866,136.64,136.59,0.25]
[1642529939517,23.3694,136.65,136.59,11.2308]
[1642529939724,2.927,136.68,136.59,92.0928]
[1642529939917,24.4694,136.69,136.6,2.927]
[1642529940120,24.4694,136.69,136.6,8.927]
[1642529940418,24.4694,136.69,136.61,42.49806603]
[1642529940620,24.4694,136.69,136.62,13.9034]
[1642529940822,24.4694,136.69,136.62,19.5864]
[1642529941020,24.4694,136.69,136.63,0.25]
[1642529942019,24.4694,136.69,136.63,6.25]
[1642529942421,24.4694,136.69,136.64,10.9756]
[1642529942723,24.4694,136.69,136.65,0.25]
[1642529943122,24.4694,136.69,136.63,6.0]
[1642529943324,27.3954,136.69,136.63,6.0]
[1642529943526,0.25,136.68,136.62,2.927]
[1642529943721,2.927,136.67,136.62,2.927]
[1642529944121,49.15543897,136.66,136.62,2.927]
[1642529945121,6.0,136.65,136.62,2.927]
[1642529945421,3.03219996,136.64,136.63,0.25]
[1642529945722,27.3964,136.69,136.63,0.25]
[1642529946522,72.78568536,136.69,136.63,10.9776]
[1642529947524,6.0,136.68,136.63,10.9776]
[1642529947723,6.0,136.68,136.64,0.25]
[1642529948225,72.78568536,136.69,136.64,41.65696057]
[1642529948427,27.3964,136.69,136.64,41.65696057]
[1642529948624,27.3964,136.69,136.64,52.63376057]
[1642529949429,60.16139281,136.69,136.64,0.25]
[1642529949827,63.08739281,136.69,136.61,2.926]
[1642529950027,6.0,136.68,136.61,2.926]
[1642529950328,2.927,136.67,136.62,0.25]
[1642529950528,50.90774481,136.66,136.62,0.25]
[1642529951129,50.90774481,136.66,136.61,2.926]
[1642529951331,3.177,136.65,136.58,10.47]
[1642529951634,3.177,136.65,136.56,10.47]
[1642529951833,27.468,136.65,136.56,49.08560575]
[1642529952633,10.9825,136.64,136.57,0.25]
[1642529952834,36.31550919,136.63,136.57,0.25]
[1642529953438,36.31550919,136.63,136.56,10.47]
[1642529953633,13.9121,136.62,136.57,0.25]
[1642529953834,13.9121,136.62,136.54,13.397]
[1642529954035,13.9121,136.62,136.55,6.0]
[1642529954235,13.9121,136.62,136.55,0.25]
[1642529954439,87.1521,136.62,136.55,0.25]
[1642529954636,13.9121,136.62,136.55,0.25]
[1642529954836,13.9121,136.62,136.54,67.05057004]
[1642529955038,6.0,136.61,136.54,21.4549]
[1642529955236,2.928,136.6,136.54,10.47]
[1642529955441,13.9136,136.6,136.54,10.47]
[1642529955738,2.928,136.6,136.54,21.455]
[1642529956038,44.99658066,136.59,136.54,10.47]
[1642529958144,55.98288066,136.59,136.54,10.47]
[1642529958747,3.178,136.58,136.54,10.47]
[1642529958939,2.928,136.58,136.54,10.47]
[1642529959150,10.681,136.58,136.54,10.47]
[1642529959943,7.753,136.58,136.54,10.47]
[1642529960542,46.27130052,136.56,136.54,10.47]
[1642529960941,6.06439993,136.55,136.54,10.47]
[1642529963675,6.06439993,136.55,136.5,2.928]
[1642529963872,23.91699993,136.55,136.49,2.928]
[1642529964073,23.91699993,136.55,136.48,12.53068536]
[1642529964074,2.928,136.54,136.48,12.53068536]
[1642529964274,3.178,136.54,136.48,2.06068536]
[1642529964674,41.96929432,136.53,136.48,2.06068536]
[1642529964874,2.93,136.52,136.48,2.06068536]
[1642529965074,2.93,136.52,136.46,2.928]
[1642529965373,10.9923,136.52,136.46,2.928]
[1642529966176,38.89929432,136.53,136.46,2.928]
[1642529966374,35.96929432,136.53,136.47,35.09693828]
[1642529966575,35.96929432,136.53,136.46,2.928]
[1642529966775,38.89929432,136.53,136.46,2.928]
[1642529967174,6.0,136.52,136.46,2.928]
[1642529967375,2.93,136.51,136.45,10.47]
[1642529967577,48.35082014,136.5,136.45,10.47]
[1642529969380,59.34442014,136.5,136.45,10.47]
[1642529969979,8.93,136.49,136.45,10.47]
[1642529971483,19.9246,136.49,136.45,10.47]
[1642529971880,28.0,136.48,136.42,2.0205629]
[1642529972080,2.931,136.47,136.42,2.0205629]
[1642529972683,13.9275,136.47,136.42,2.0205629]
[1642529972884,48.03632782,136.46,136.42,2.0205629]
[1642529974684,59.03322782,136.46,136.42,2.0205629]
[1642529974883,2.931,136.45,136.42,2.0205629]
[1642529975083,43.24537292,136.43,136.42,2.0205629]
[1642529976084,6.06439993,136.44,136.42,2.0205629]
[1642529977083,41.05717787,136.44,136.42,2.0205629]
[1642529977483,6.06439993,136.44,136.42,2.0205629]
[1642529977983,10.9954,136.48,136.42,2.0205629]
[1642529978383,0.25,136.47,136.42,2.0205629]
[1642529978586,2.931,136.46,136.42,2.0205629]
[1642529978782,0.25,136.45,136.42,2.0205629]
[1642529978983,19.99449993,136.44,136.42,2.0205629]
[1642529979186,43.94375353,136.43,136.37,21.4681]
[1642529979384,43.94375353,136.43,136.37,10.47]
[1642529979385,44.19375353,136.43,136.37,10.47]
[1642529980487,11.001,136.41,136.37,10.47]
[1642529980687,44.2086143,136.4,136.37,10.47]
[1642529980886,6.06439993,136.39,136.37,10.47]
[1642529981894,44.2086143,136.4,136.37,10.47]
[1642529982589,13.9322,136.42,136.37,10.47]
[1642529982992,2.932,136.44,136.37,12.25905272]
[1642529983191,2.932,136.48,136.38,2.932]
[1642529983391,26.8804,136.48,136.38,2.932]
[1642529983596,37.03875751,136.46,136.38,2.932]
[1642529983792,2.932,136.45,136.37,49.77161443]
[1642529983993,2.932,136.45,136.37,10.47]
[1642529985296,2.932,136.45,136.38,49.03135691]
[1642529985496,2.932,136.45,136.38,60.02865691]
[1642529986499,37.03875751,136.46,136.38,62.96065691]
[1642529987397,48.03575751,136.46,136.38,62.96065691]
[1642529988805,37.03875751,136.46,136.38,62.96065691]
[1642529989231,2.932,136.47,136.38,62.96065691]
[1642529989430,26.8804,136.48,136.38,83.82970963]
[1642529989629,23.2748,136.49,136.39,6.0]
[1642529989831,23.2748,136.49,136.42,10.9937]
[1642529990030,6.0,136.48,136.42,21.4637]
[1642529990230,44.18872199,136.47,136.42,10.47]
[1642529991631,6.0,136.46,136.39,16.47]
[1642529991830,6.0,136.46,136.39,10.47]
[1642529992532,6.0,136.46,136.41,10.9953]
[1642529993732,44.18872199,136.47,136.41,60.54292388]
[1642529993931,2.931,136.48,136.41,71.01292388]
[1642529994132,23.2748,136.49,136.42,2.931]
[1642529994333,23.2748,136.49,136.44,10.9927]
[1642529994536,40.44495251,136.53,136.45,2.931]
[1642529994734,40.44495251,136.53,136.46,10.47]
[1642529994735,1.98815251,136.53,136.46,10.47]
[1642529994932,45.65871484,136.52,136.47,2.93]
[1642529995134,45.65871484,136.52,136.47,13.4]
[1642529995835,45.65871484,136.52,136.47,24.3904]
[1642529996334,45.65871484,136.52,136.47,21.4604]
[1642529996534,45.65871484,136.52,136.47,10.47]
[1642529996737,2.93,136.51,136.47,10.47]
[1642529996935,2.93,136.51,136.44,2.06068536]
[1642529997435,13.9231,136.51,136.44,2.06068536]
[1642529997634,13.9231,136.51,136.43,12.53068536]
[1642529998036,2.93,136.51,136.43,12.53068536]
[1642529998636,2.93,136.51,136.43,10.47]
[1642529999437,13.9227,136.51,136.43,21.4627]
[1642529999739,2.93,136.51,136.44,2.931]
[1642530000037,2.93,136.51,136.45,42.62425722]
[1642530000538,2.93,136.51,136.44,24.3927]
[1642530000738,2.93,136.51,136.44,13.401]
[1642530001037,6.0,136.5,136.44,10.47]
[1642530001239,2.931,136.49,136.42,2.06068536]
[1642530001439,10.9967,136.48,136.42,2.06068536]
[1642530001637,44.13748186,136.46,136.42,2.06068536]
[1642530001939,2.931,136.45,136.39,2.06068536]
[1642530002137,3.181,136.45,136.39,2.06068536]
[1642530002538,16.9988,136.44,136.39,2.06068536]
[1642530002738,2.932,136.43,136.39,2.06068536]
[1642530002938,2.932,136.43,136.37,2.06068536]
[1642530003339,43.00914494,136.42,136.37,2.06068536]
[1642530003738,43.00914494,136.42,136.38,0.25]
[1642530004139,54.01024494,136.42,136.36,2.06068536]
[1642530004338,43.00914494,136.42,136.37,0.25]
[1642530005341,43.00914494,136.42,136.36,2.06068536]
[1642530006341,11.0009,136.41,136.36,2.06068536]
[1642530006743,11.0009,136.41,136.35,2.932]
[1642530008844,43.00914494,136.42,136.35,2.932]
[1642530008845,11.0041,136.39,136.35,2.932]
[1642530009046,2.932,136.38,136.34,2.06068536]
[1642530009246,9.182,136.38,136.31,14.27003509]
[1642530009444,9.182,136.38,136.32,2.06451289]
[1642530009445,82.422,136.38,136.32,2.06451289]
[1642530009744,118.03141191,136.37,136.32,2.06451289]
[1642530009944,2.932,136.36,136.29,3.80003509]
[1642530010148,11.0076,136.34,136.29,3.80003509]
[1642530010344,2.934,136.33,136.29,3.80003509]
[1642530010547,0.25,136.33,136.26,14.27003509]
[1642530010747,2.934,136.32,136.26,3.80003509]
[1642530010947,36.78821735,136.32,136.26,3.80003509]
[1642530011149,2.934,136.31,136.26,3.80003509]
[1642530011347,3.184,136.31,136.26,3.80003509]
[1642530011753,76.424,136.31,136.24,10.47]
[1642530012556,11.0102,136.3,136.22,3.80003509]
[1642530012753,3.185,136.29,136.22,3.80003509]
[1642530012953,3.185,136.29,136.21,10.47]
[1642530013152,0.25,136.29,136.21,10.47]
[1642530013554,44.73168499,136.29,136.21,10.47]
[1642530014165,44.73168499,136.29,136.22,0.25]
[1642530014455,11.0114,136.28,136.22,0.25]
[1642530014755,13.9464,136.28,136.22,0.25]
[1642530015156,13.9464,136.28,136.21,10.47]
[1642530015586,17.2629,136.27,136.21,10.47]
[1642530015786,51.8795116,136.26,136.18,3.80003509]
[1642530016286,0.25,136.25,136.17,10.47]
[1642530016485,2.936,136.24,136.17,10.47]
[1642530016686,36.34584888,136.23,136.17,10.47]
[1642530016985,2.936,136.22,136.17,10.47]
[1642530017588,2.936,136.22,136.15,3.80003509]
[1642530017786,13.9526,136.22,136.14,10.47]
[1642530017988,13.9526,136.22,136.16,38.38105029]
[1642530019489,47.36134888,136.23,136.17,0.25]
[1642530019687,2.936,136.22,136.17,0.25]
[1642530020688,13.9524,136.22,136.16,38.38105029]
[1642530021087,13.9524,136.22,136.14,10.47]
[1642530021689,0.25,136.21,136.14,10.47]
[1642530021889,2.936,136.2,136.14,10.47]
[1642530022095,46.07613275,136.19,136.14,10.47]
[1642530023690,49.01213275,136.19,136.14,10.47]
[1642530024995,46.07613275,136.19,136.14,10.47]
[1642530025198,11.0173,136.21,136.15,41.363249]
[1642530025400,23.3798,136.29,136.15,41.363249]
[1642530025401,2.936,136.2,136.15,41.363249]
[1642530025598,2.936,136.25,136.15,51.833249]
[1642530026195,2.936,136.25,136.18,11.0126]
[1642530026398,42.68514891,136.26,136.19,48.58757492]
[1642530026599,42.68514891,136.26,136.19,48.83757492]
[1642530026797,2.936,136.25,136.19,48.83757492]
[1642530027197,45.62114891,136.26,136.19,48.83757492]
[1642530027799,42.68514891,136.26,136.19,48.83757492]
[1642530027997,2.936,136.25,136.19,59.85047492]
[1642530028200,42.68514891,136.26,136.19,59.85047492]
[1642530028996,42.68514891,136.26,136.19,11.2629]
[1642530028997,2.936,136.25,136.19,11.2629]
[1642530030298,2.936,136.25,136.19,0.25]
[1642530030502,0.25,136.24,136.17,10.47]
[1642530030703,2.936,136.23,136.17,10.47]
[1642530031100,0.25,136.22,136.17,10.47]
[1642530031299,2.936,136.21,136.17,10.47]
[1642530032201,42.39853687,136.22,136.17,10.47]
[1642530032401,2.936,136.24,136.18,0.25]
[1642530032602,2.936,136.29,136.19,10.47]
[1642530033002,11.0107,136.29,136.2,11.2617]
[1642530033207,2.935,136.28,136.2,21.7317]
[1642530033402,35.39932995,136.27,136.2,57.3131496]
[1642530033803,35.39932995,136.27,136.2,57.5731496]
[1642530034806,35.39932995,136.27,136.2,57.3131496]
[1642530037108,35.39932995,136.27,136.2,21.7317]
[1642530038709,35.39932995,136.27,136.2,21.9917]
[1642530040824,35.39932995,136.27,136.2,21.7317]
[1642530041222,2.936,136.26,136.2,21.7317]
[1642530041422,2.936,136.26,136.2,10.72]
[1642530041638,13.9491,136.26,136.18,14.27003509]
[1642530041837,0.25,136.25,136.18,14.27003509]
[1642530042037,42.79295889,136.23,136.18,14.27003509]
[1642530042238,2.936,136.22,136.18,14.27003509]
[1642530042441,2.936,136.22,136.18,10.47]
[1642530043638,2.936,136.22,136.18,5.78718724]
[1642530043839,2.936,136.22,136.15,10.47]
[1642530044239,0.25,136.21,136.15,10.47]
[1642530044439,38.68164823,136.19,136.15,10.47]
[1642530044641,2.936,136.18,136.15,10.47]
[1642530045643,6.06439993,136.17,136.15,10.47]
[1642530045843,48.97101992,136.16,136.15,10.47]
[1642530046045,48.97101992,136.16,136.15,2.99148565]
[1642530046245,48.97101992,136.16,136.12,10.47]
[1642530046543,48.97101992,136.16,136.1,14.27003509]
[1642530046743,0.25,136.15,136.1,14.27003509]
[1642530046950,36.30050516,136.13,136.1,14.27003509]
[1642530047145,9.00239993,136.12,136.1,14.27003509]
[1642530047344,6.06439993,136.12,136.1,14.27003509]
[1642530047546,2.938,136.11,136.1,8.54005579]
[1642530047745,2.938,136.11,136.07,14.27003509]
[1642530047945,2.939,136.12,136.07,14.27003509]
[1642530048751,2.939,136.12,136.07,10.47]
[1642530049753,2.939,136.15,136.07,58.94127909]
[1642530049952,2.938,136.16,136.07,60.99033181]
[1642530050353,2.938,136.16,136.07,12.51905272]
[1642530050553,2.938,136.16,136.08,0.25]
[1642530050753,2.938,136.16,136.07,10.47]
[1642530050958,0.25,136.15,136.07,10.47]
[1642530051156,2.938,136.14,136.07,10.47]
[1642530051354,42.49823102,136.13,136.07,10.47]
[1642530051552,2.939,136.12,136.07,10.47]
[1642530053053,42.49823102,136.13,136.07,21.4927]
[1642530053253,42.49823102,136.13,136.08,0.25]
[1642530053454,2.938,136.16,136.08,0.25]
[1642530053855,2.938,136.16,136.08,6.25]
[1642530054356,46.34432378,136.16,136.09,11.0206]
[1642530054755,43.40632378,136.16,136.1,0.25]
[1642530055154,46.34432378,136.16,136.1,0.25]
[1642530055354,46.34432378,136.16,136.09,10.47]
[1642530055355,46.34432378,136.16,136.11,11.0192]
[1642530055557,46.34432378,136.16,136.07,10.47]
[1642530055756,54.02732378,136.16,136.07,10.47]
[1642530056159,6.25,136.15,136.07,10.47]
[1642530056458,28.45920129,136.12,136.07,10.47]
[1642530056657,2.939,136.11,136.07,10.47]
[1642530056855,3.189,136.11,136.07,10.47]
[1642530059357,14.2144,136.11,136.07,10.47]
[1642530060254,3.189,136.11,136.07,10.47]
[1642530060657,2.939,136.11,136.07,10.47]
[1642530061059,39.48370129,136.12,136.07,10.47]
[1642530061261,28.45920129,136.12,136.07,10.47]
[1642530062464,2.939,136.11,136.07,10.47]
[1642530062663,28.45920129,136.12,136.08,0.25]
[1642530062860,2.939,136.14,136.08,6.25]
[1642530063062,22.6616,136.15,136.08,6.25]
[1642530063267,2.938,136.14,136.08,16.72]
[1642530063466,2.938,136.14,136.08,10.72]
[1642530063668,2.938,136.14,136.09,6.0]
[1642530063867,55.34490464,136.28,136.09,6.0]
[1642530063868,43.2918364,136.16,136.1,1.2874376]
[1642530064069,25.7458,136.2,136.1,1.5374376]
[1642530064270,25.7458,136.2,136.11,10.47]
[1642530064467,2.938,136.2,136.11,17.8]
[1642530064668,2.936,136.22,136.12,0.25]
[1642530064869,2.936,136.22,136.12,2.03905272]
[1642530065074,38.32658783,136.21,136.12,44.65224869]
[1642530065271,2.936,136.2,136.12,11.2688]
[1642530065472,0.25,136.19,136.11,10.47]
[1642530065673,2.936,136.18,136.11,10.47]
[1642530066071,6.0,136.17,136.11,10.47]
[1642530066274,36.72693724,136.16,136.11,10.47]
[1642530066774,33.78893724,136.16,136.11,10.47]
[1642530068900,2.938,136.15,136.11,10.47]
[1642530069305,0.25,136.14,136.1,1.2874376]
[1642530069501,2.938,136.13,136.08,10.47]
[1642530069701,32.8982029,136.12,136.06,10.47]
[1642530069901,2.939,136.11,136.06,10.47]
[1642530070104,2.939,136.11,136.06,21.4937]
[1642530071701,2.939,136.11,136.06,10.47]
[1642530073001,13.9643,136.11,136.06,10.47]
[1642530073402,6.25,136.1,136.0,3.80003509]
[1642530073702,36.72893724,136.09,136.01,14.27003509]
[1642530073902,36.72893724,136.09,136.01,3.80003509]
[1642530074101,0.25,136.08,136.01,3.80003509]
[1642530074304,32.6482029,136.06,136.01,3.80003509]
[1642530074504,32.6482029,136.06,135.99,10.47]
[1642530074704,2.94,136.05,135.99,10.47]
[1642530074903,2.94,136.05,136.0,6.0]
[1642530075105,0.25,136.04,136.0,6.0]
[1642530075303,2.94,136.03,136.0,6.0]
[1642530075506,6.06439993,136.02,136.0,6.0]
[1642530075905,2.94,136.01,136.0,6.0]
[1642530076104,6.06439993,136.02,136.0,6.0]
[1642530077306,9.00439993,136.02,136.0,6.0]
[1642530077704,9.00439993,136.02,135.98,6.0]
[1642530077906,9.00439993,136.02,135.97,14.27003509]
[1642530078106,9.00439993,136.02,135.97,10.47]
[1642530078905,9.00439993,136.02,135.96,3.80003509]
[1642530079105,0.25,136.01,135.96,3.80003509]
[1642530079305,2.941,136.0,135.96,3.80003509]
[1642530079507,32.6482029,135.99,135.94,14.27003509]
[1642530079709,2.941,135.98,135.94,14.27003509]
[1642530079907,2.941,135.98,135.94,3.80003509]
[1642530081008,2.941,135.98,135.91,10.47]
[1642530081207,2.941,135.98,135.92,6.25]
[1642530081409,2.941,135.98,135.92,17.2853]
[1642530082211,2.941,135.98,135.92,6.25]
[1642530082408,13.9767,135.98,135.92,6.25]
[1642530082608,13.9767,135.98,135.92,0.25]
[1642530083009,13.9767,135.98,135.91,10.47]
[1642530083213,19.8267,135.98,135.91,10.47]
[1642530084313,2.941,135.98,135.92,0.25]
[1642530084514,32.6482029,135.99,135.92,0.25]
[1642530084917,2.942,135.98,135.92,0.25]
[1642530085118,2.942,135.98,135.92,11.2846]
[1642530085719,2.942,135.98,135.92,0.25]
[1642530086519,2.942,135.98,135.91,10.47]
[1642530087527,13.9781,135.98,135.91,21.506]
[1642530089528,32.6482029,135.99,135.92,0.25]
[1642530089731,32.6482029,135.99,135.93,11.0338]
[1642530090127,32.6482029,135.99,135.94,0.25]
[1642530091329,32.6482029,135.99,135.94,11.0334]
[1642530091530,2.942,136.01,135.94,11.0334]
[1642530091728,2.942,136.01,135.95,0.25]
[1642530092532,38.68178709,136.01,135.95,0.25]
[1642530092730,38.68178709,136.01,135.93,0.25]
[1642530093531,2.942,136.01,135.95,11.0324]
[1642530093829,2.941,136.02,135.96,0.25]
[1642530094031,2.941,136.04,135.96,10.72]
[1642530094232,2.941,136.04,135.96,12.50905272]
[1642530094433,47.71103022,136.03,135.96,10.72]
[1642530094630,47.71103022,136.03,135.97,11.0297]
[1642530094833,2.941,136.02,135.96,10.72]
[1642530095033,3.191,136.02,135.97,6.0]
[1642530095233,3.191,136.02,135.96,10.47]
[1642530095930,14.2242,136.02,135.96,10.47]
[1642530096129,14.2242,136.02,135.94,11.0329]
[1642530096735,14.2242,136.02,135.93,10.47]
[1642530097531,6.0,136.01,135.93,10.47]
[1642530097730,11.0365,135.99,135.93,10.47]
[1642530097945,21.66810992,135.98,135.93,10.47]
[1642530098533,18.72610992,135.98,135.93,10.47]
[1642530098732,29.76220992,135.98,135.93,10.47]
[1642530099236,18.72610992,135.98,135.93,10.47]
[1642530100736,13.9772,135.99,135.93,10.47]
[1642530100938,13.9772,135.99,135.94,0.25]
[1642530101138,2.941,136.0,135.94,0.25]
[1642530101340,2.941,136.01,135.94,0.25]
[1642530101539,11.0342,136.0,135.94,0.25]
[1642530101761,2.941,135.99,135.91,10.47]
[1642530102161,2.941,135.99,135.92,0.25]
[1642530102561,35.47692429,135.98,135.92,0.25]
[1642530102762,2.942,135.97,135.92,0.25]
[1642530103165,13.9785,135.97,135.91,11.0361]
[1642530103564,13.9785,135.97,135.89,14.27003509]
[1642530103763,13.9785,135.97,135.91,0.25]
[1642530104263,13.9785,135.97,135.89,14.27003509]
[1642530104463,13.9785,135.97,135.9,14.83713509]
[1642530105265,13.9785,135.97,135.9,11.0371]
[1642530106467,13.9785,135.97,135.91,0.25]
[1642530106665,13.9785,135.97,135.91,11.0363]
[1642530110068,13.9785,135.97,135.9,14.83713509]
[1642530110673,13.9785,135.97,135.91,0.25]
[1642530111774,13.9785,135.97,135.89,14.27003509]
[1642530111972,11.0393,135.94,135.89,3.80003509]
[1642530112274,2.943,135.93,135.89,3.80003509]
[1642530112472,2.943,135.95,135.89,3.80003509]
[1642530112674,33.90321585,135.95,135.89,3.80003509]
[1642530113273,44.94141585,135.95,135.89,3.80003509]
[1642530113574,44.94141585,135.95,135.88,11.11782902]
[1642530114376,2.943,135.95,135.88,11.11782902]